[Event "48th Indian U15-ch Girls 2023"]
[Site "Jalgaon"]
[Date "2024.01.01"]
[Round "8.2"]
[White "Mrittika Mallick"]
[Black "Nivedita V C"]
[Result "1-0"]
[ECO "B00"]
[WhiteElo "1970"]
[BlackElo "1638"]
[Annotator "RC"]
[PlyCount "65"]
[EventDate "2023.12.30"]
[EventType "swiss"]
[EventCountry "IND"]
[SourceTitle "playchess.com"]
[Source "ChessBase"]
[SourceQuality "1"]
[TimeControl "5400+30"]

1. e4 {[%emt 0:00:03]} b6 {[%emt 0:00:02]} 2. d4 {[%emt 0:00:24]} Bb7 {[%emt 0:00:03]} 3. Nc3 {[%emt 0:00:18]} e6 {[%emt 0:00:02]} 4. f3 {[%emt 0:00:47]} d6 {[%emt 0:00:33]} 5. Be3 {[%emt 0:00:34]} g6 {[%emt 0:01:36]} 6. Qd2 {[%emt 0:00:52]} Bg7 {[%emt 0:01:39]} 7. h4 {[%emt 0:02:20]} h5 {[%emt 0:02:28]} 8. O-O-O {[%emt 0:02:34]} Nf6 {[%emt 0:04:52]} 9. Nh3 {[%emt 0:05:53]} Nbd7 {[%emt 0:00:38]} 10. Bg5 {[%emt 0:05:16]} Qe7 {[%emt 0:15:35]} 11. Bd3 {[%emt 0:06:11]} O-O-O {[%emt 0:00:47]} 12. Qe2 {[%emt 0:00:32]} e5 {[%emt 0:00:31]} 13. Nd5 {[%emt 0:05:33]} Qe8 {[%emt 0:13:22]} 14. Bb5 {[%emt 0:10:26]} Nxd5 {[%emt 0:13:06]} 15. Bxd8 {[%emt 0:01:30]} Qxd8 {[%emt 0:00:36]} 16. exd5 {[%emt 0:00:34]} exd4 {[%emt 0:00:26]} 17. Bc6 {[%emt 0:01:40]} Bxc6 {[%emt 0:07:54]} 18. dxc6 {[%emt 0:00:10]} Nb8 {[%emt 0:00:03]} 19. Qc4 {[%emt 0:02:47]} d5 {[%emt 0:00:10]} 20. Qa4 {[%emt 0:00:26]} a6 {[%emt 0:01:10]} 21. Ng5 {[%emt 0:01:42]} Qd6 {[%emt 0:00:37]} 22. Kb1 {[%emt 0:03:56]} Rf8 {[%emt 0:01:29]} 23. Rhe1 {[%emt 0:02:03]} Qxc6 {[%emt 0:00:24]} 24. Qa3 {[%emt 0:04:59]} Kb7 {[%emt 0:09:05]} 25. Re7 {[%emt 0:02:46]} Bf6 {[%emt 0:02:21]} 26. Rxc7+ {[%emt 0:01:35]} Qxc7 {[%emt 0:00:07]} 27. Qxf8 {[%emt 0:00:08]} d3 {[%emt 0:03:13]} 28. cxd3 {[%emt 0:02:28]} Qe5 {[%emt 0:00:27]} 29. Qxf7+ {[%emt 0:02:21]} Ka8 {[%emt 0:00:08]} 30. d4 {[%emt 0:02:36]} Qf5+ {[%emt 0:01:18]} 31. Ka1 {[%emt 0:00:07]} Qc2 {[%emt 0:02:53]} 32. Qxd5+ {[%emt 0:01:01]} Ka7 {[%emt 0:00:35]} 33. Qb3 {[%emt 0:00:26]} 1-0

[Event "48th Indian U15-ch Girls 2023"]
[Site "Jalgaon"]
[Date "2024.01.01"]
[Round "8.3"]
[White "Sachi Jain"]
[Black "Kirthika B"]
[Result "1-0"]
[ECO "B90"]
[WhiteElo "1844"]
[BlackElo "1605"]
[Annotator "NA RC COMBH"]
[PlyCount "69"]
[EventDate "2023.12.30"]
[EventType "swiss"]
[EventCountry "IND"]
[SourceTitle "playchess.com"]
[Source "ChessBase"]
[SourceQuality "1"]
[TimeControl "5400+30"]

1. e4 {[%emt 0:01:52]} c5 {[%emt 0:00:13]} 2. Nf3 {[%emt 0:00:08]} d6 {[%emt 0:00:05]} 3. d4 {[%emt 0:00:05]} cxd4 {[%emt 0:00:04]} 4. Nxd4 {[%emt 0:00:07]} Nf6 {[%emt 0:00:05]} 5. Nc3 {[%emt 0:00:05]} a6 {[%emt 0:00:02]} 6. Nb3 {[%emt 0:00:57]} e6 {[%emt 0:00:49]} 7. g4 {[%emt 0:00:51]} b5 {[%emt 0:00:41]} 8. Bg2 {[%emt 0:00:02]} Bb7 {[%emt 0:00:09]} 9. g5 {[%emt 0:01:01]} Nfd7 {[%emt 0:00:12]} 10. f4 {[%emt 0:01:40]} Be7 {[%emt 0:03:45]} 11. Be3 {[%emt 0:00:10]} Nb6 {[%emt 0:03:04]} 12. Qd4 {[%emt 0:05:23]} Nc4 {[%emt 0:07:26]} 13. Qxg7 {[%emt 0:00:30]} Nxe3 {[%emt 0:04:05]} 14. Qxh8+ {[%emt 0:00:17]} Kd7 {[%emt 0:05:10]} 15. Qxd8+ {[%emt 0:07:23]} Bxd8 {[%emt 0:01:47]} 16. Kf2 {[%emt 0:12:08]} Nxg2 {[%emt 0:01:31]} 17. Kxg2 {[%emt 0:00:05]} b4 {[%emt 0:00:11]} 18. Rhd1 {[%emt 0:00:27]} bxc3 {[%emt 0:06:59]} 19. Nc5+ {[%emt 0:00:08]} Kc7 {[%emt 0:00:33]} 20. Nxb7 {[%emt 0:00:02]} Kxb7 {[%emt 0:00:05]} 21. bxc3 {[%emt 0:00:45]} Kc6 {[%emt 0:01:52]} 22. Rd3 {[%emt 0:01:00]} Nd7 {[%emt 0:06:03]} 23. e5 {[%emt 0:05:20]} d5 {[%emt 0:06:36]} 24. Rad1 {[%emt 0:00:29]} ({White should play} 24. c4 $1 $16 {[%cal Rc4d5]}) 24... Bb6 {[%emt 0:12:32]} 25. c4 {[%emt 0:06:00]} d4 {[%emt 0:05:49]} 26. c3 $16 {[%emt 0:00:25]} Nc5 {[%emt 0:03:21]} 27. Rxd4 {[%emt 0:00:47]} Bc7 {[%emt 0:03:43]} 28. Kf3 {[%emt 0:01:07]} Rb8 {[%emt 0:03:39]} 29. Kg4 {[%emt 0:00:33]} Rb2 {[%emt 0:01:35]} 30. R4d2 {[%emt 0:00:04]} Rb8 {[%emt 0:09:59]} 31. Kh5 {[%emt 0:00:47]} Rg8 {[%emt 0:02:16]} 32. Kh6 {[%emt 0:00:01]} Ne4 {[%emt 0:02:10]} 33. Kxh7 {[%emt 0:02:11]} Rg6 {[%emt 0:00:24]} 34. Rd7 {[%emt 0:01:40]} Nxc3 {[%emt 0:00:59]} 35. Rxf7 {[%emt 0:00:29]} 1-0

[Event "48th Indian U15-ch Girls 2023"]
[Site "Jalgaon"]
[Date "2024.01.01"]
[Round "8.4"]
[White "Saparya Ghosh"]
[Black "Sneha Halder"]
[Result "1/2-1/2"]
[ECO "E43"]
[WhiteElo "1662"]
[BlackElo "1766"]
[Annotator "NA RC COMBH"]
[PlyCount "141"]
[EventDate "2023.12.30"]
[EventType "swiss"]
[EventCountry "IND"]
[SourceTitle "playchess.com"]
[Source "ChessBase"]
[SourceQuality "1"]
[TimeControl "5400+30"]

1. d4 {[%emt 0:01:36]} Nf6 {[%emt 0:00:22]} 2. c4 {[%emt 0:00:07]} e6 {[%emt 0:00:04]} 3. Nc3 {[%emt 0:00:12]} Bb4 {[%emt 0:00:06]} 4. e3 {[%emt 0:00:12]} b6 {[%emt 0:00:08]} 5. Bd3 {[%emt 0:01:04]} Bb7 {[%emt 0:00:08]} 6. Nf3 {[%emt 0:00:36]} Ne4 {[%emt 0:00:33]} 7. Qc2 {[%emt 0:01:07]} f5 {[%emt 0:00:30]} 8. a3 {[%emt 0:03:17]} Bxc3+ {[%emt 0:00:32]} 9. bxc3 {[%emt 0:00:06]} d6 {[%emt 0:00:56]} 10. O-O {[%emt 0:00:15]} O-O {[%emt 0:00:20]} 11. Nd2 {[%emt 0:02:36]} Nxd2 {[%emt 0:03:56]} 12. Bxd2 {[%emt 0:00:05]} Nd7 {[%emt 0:03:32]} 13. f3 {[%emt 0:05:32]} Qf6 {[%emt 0:04:35]} 14. e4 {[%emt 0:05:01]} e5 {[%emt 0:03:12]} 15. exf5 {[%emt 0:03:42]} exd4 {[%emt 0:00:11]} 16. Rae1 {[%emt 0:06:39]} Nc5 {[%emt 0:02:37]} 17. g4 {[%emt 0:08:42]} Ba6 {[%emt 0:01:02]} 18. Rf2 {[%emt 0:08:43]} d5 {[%emt 0:03:42]} 19. g5 {[%emt 0:03:32]} Qf7 {[%emt 0:01:22]} 20. f6 {[%emt 0:19:42]} Nxd3 {[%emt 0:12:11]} 21. Qxd3 {[%emt 0:03:05]} Bxc4 {[%emt 0:02:54]} 22. Qxd4 {[%emt 0:01:09]} Rae8 {[%emt 0:07:04]} 23. Rg2 {[%emt 0:06:08]} Rxe1+ {[%emt 0:01:11]} 24. Bxe1 {[%emt 0:02:20]} Re8 {[%emt 0:00:01]} 25. Bd2 {[%emt 0:02:25]} c5 {[%emt 0:01:03]} 26. Qf4 {[%emt 0:02:26]} Qg6 {[%emt 0:01:44]} 27. h4 {[%emt 0:01:01]} Rf8 {[%emt 0:03:50]} 28. Qd6 {[%emt 0:01:18]} Qf7 {[%emt 0:02:57]} 29. fxg7 {[%emt 0:04:11]} Re8 {[%emt 0:03:08]} 30. g6 {[%emt 0:06:16]} hxg6 {[%emt 0:00:07]} 31. h5 {[%emt 0:00:10]} Qe6 {[%emt 0:20:11]} 32. Qf4 {[%emt 0:00:53]} gxh5 {[%emt 0:01:22]} 33. Qg5 {[%emt 0:00:11]} Bd3 {[%emt 0:01:07]} 34. Qxh5 {[%emt 0:00:28]} Bh7 {[%emt 0:00:01]} 35. f4 {[%emt 0:00:59]} Re7 {[%emt 0:02:51]} 36. Qg5 {[%emt 0:00:39]} Qd7 {[%emt 0:00:51]} 37. c4 {[%emt 0:01:54]} d4 {[%emt 0:00:00]} 38. f5 {[%emt 0:00:38]} Rxg7 {[%emt 0:01:00]} 39. Qxg7+ {[%emt 0:00:23]} Qxg7 {[%emt 0:00:00]} 40. Rxg7+ {[%emt 0:00:01]} Kxg7 {[%emt 0:00:01]} 41. Bf4 {[%emt 0:00:27]} Kf6 {[%emt 0:11:35]} 42. Bb8 {[%emt 0:00:23]} Kxf5 {[%emt 0:00:30]} 43. Bxa7 {[%emt 0:00:46]} Ke5 {[%emt 0:00:50]} 44. Kf2 {[%emt 0:00:55]} Kd6 {[%emt 0:00:47]} 45. Bxb6 {[%emt 0:00:06]} Kc6 {[%emt 0:00:00]} 46. Bd8 {[%emt 0:00:51]} Bd3 {[%emt 0:00:02]} 47. Ke1 {[%emt 0:00:37]} Bxc4 {[%emt 0:00:02]} 48. a4 {[%emt 0:00:25]} Ba6 {[%emt 0:03:12]} 49. Kd2 {[%emt 0:00:27]} c4 {[%emt 0:00:01]} 50. Ba5 {[%emt 0:00:27]} Kc5 {[%emt 0:01:38]} 51. Kc2 {[%emt 0:00:19]} Bb7 {[%emt 0:00:01]} 52. Bd2 {[%emt 0:00:48]} Bc6 {[%emt 0:00:56]} 53. a5 {[%emt 0:00:28]} Kb5 {[%emt 0:00:36]} 54. Be1 {[%emt 0:00:27]} Kc5 {[%emt 0:00:56]} 55. Bd2 {[%emt 0:00:29]} Kd5 {[%emt 0:00:00]} 56. Bb4 {[%emt 0:00:19]} Ke4 {[%emt 0:00:25]} 57. Kd2 {[%emt 0:00:08]} Bb5 {[%emt 0:00:13]} 58. a6 {[%emt 0:01:09]} Bxa6 {[%emt 0:00:00]} 59. Ba5 {[%emt 0:00:06]} Bb5 {[%emt 0:00:49]} 60. Bb4 {[%emt 0:00:07]} Ba4 {[%emt 0:00:18]} 61. Ba5 {[%emt 0:00:23]} Kd5 {[%emt 0:00:23]} 62. Bb4 {[%emt 0:01:20]} Kc6 {[%emt 0:00:05]} 63. Ba3 {[%emt 0:00:40]} Kb5 {[%emt 0:00:13]} 64. Bb2 {[%emt 0:00:06]} Kc5 {[%emt 0:00:23]} 65. Ba3+ {[%emt 0:00:30]} Kd5 {[%emt 0:00:12]} 66. Bb2 {[%emt 0:00:13]} Ke4 {[%emt 0:00:53]} 67. Ba1 {[%emt 0:00:10]} Bd7 {[%emt 0:03:22]} 68. Bb2 {[%emt 0:00:08]} Kd5 {[%emt 0:00:44]} 69. Ba1 {[%emt 0:00:11]} Bg4 {[%emt 0:00:17]} 70. Bb2 {[%emt 0:00:06]} Kc5 {[%emt 0:00:04]} 71. Ba1 {[%emt 0:00:08]} 1/2-1/2

[Event "48th Indian U15-ch Girls 2023"]
[Site "Jalgaon"]
[Date "2024.01.01"]
[Round "8.5"]
[White "Arshiya Das"]
[Black "Akshaya Sathi"]
[Result "0-1"]
[ECO "B93"]
[WhiteElo "1729"]
[BlackElo "1542"]
[Annotator "NA RC COMBH"]
[PlyCount "96"]
[EventDate "2023.12.30"]
[EventType "swiss"]
[EventCountry "IND"]
[SourceTitle "playchess.com"]
[Source "ChessBase"]
[SourceQuality "1"]
[TimeControl "5400+30"]

1. e4 {[%emt 0:00:03]} c5 {[%emt 0:01:24]} 2. Nf3 {[%emt 0:00:03]} d6 {[%emt 0:00:08]} 3. d4 {[%emt 0:00:04]} cxd4 {[%emt 0:00:06]} 4. Nxd4 {[%emt 0:00:02]} Nf6 {[%emt 0:00:15]} 5. Nc3 {[%emt 0:00:03]} a6 {[%emt 0:00:39]} 6. f4 {[%emt 0:00:07]} e5 {[%emt 0:00:16]} 7. Nf3 {[%emt 0:00:04]} Nbd7 {[%emt 0:00:10]} 8. a4 {[%emt 0:00:58]} Qc7 {[%emt 0:00:41]} 9. Bd3 {[%emt 0:00:29]} Be7 {[%emt 0:00:17]} 10. O-O {[%emt 0:00:15]} O-O {[%emt 0:00:22]} 11. Kh1 {[%emt 0:00:05]} Nc5 {[%emt 0:00:28]} 12. Qe1 {[%emt 0:01:05]} Re8 {[%emt 0:00:29]} 13. fxe5 {[%emt 0:07:48]} dxe5 {[%emt 0:00:29]} 14. Qg3 {[%emt 0:00:38]} Be6 {[%emt 0:03:45]} 15. Ng5 {[%emt 0:09:45]} Nxd3 {[%emt 0:01:54]} 16. Nxe6 {[%emt 0:02:21]} fxe6 {[%emt 0:00:19]} 17. cxd3 {[%emt 0:01:03]} Rf8 {[%emt 0:03:11]} 18. Bh6 {[%emt 0:04:15]} Bc5 {[%emt 0:05:32]} 19. Bg5 {[%emt 0:05:22]} Be7 {[%emt 0:10:45]} 20. Qh3 {[%emt 0:05:51]} Qd6 {[%emt 0:06:04]} 21. Rad1 {[%emt 0:08:40]} Rac8 {[%emt 0:10:34]} 22. Bh4 {[%emt 0:12:28]} Nd7 {[%emt 0:05:32]} 23. Rxf8+ {[%emt 0:07:12]} Rxf8 {[%emt 0:03:08]} 24. Bxe7 {[%emt 0:05:06]} Qxe7 {[%emt 0:00:59]} 25. Qe3 {[%emt 0:03:45]} Qc5 {[%emt 0:04:03]} 26. Qe1 {[%emt 0:05:27]} Qf2 {[%emt 0:07:37]} 27. b4 {[%emt 0:00:39]} Qc2 {[%emt 0:05:27]} 28. Kg1 {[%emt 0:02:51]} Nb8 {[%emt 0:15:07]} 29. d4 {[%emt 0:05:06]} exd4 {[%emt 0:00:39]} 30. Rxd4 {[%emt 0:00:05]} Nc6 {[%emt 0:00:07]} 31. Rd1 {[%emt 0:03:00]} Nxb4 {[%emt 0:01:18]} 32. h3 {[%emt 0:00:37]} Rc8 {[%emt 0:03:16]} 33. Qg3 {[%emt 0:01:06]} h6 {[%emt 0:05:11]} 34. Qd6 {[%emt 0:06:59]} Qxc3 {[%emt 0:00:55]} 35. Qxe6+ {[%emt 0:00:03]} Kh8 {[%emt 0:00:12]} 36. Rf1 {[%emt 0:00:15]} Qc6 {[%emt 0:02:21]} 37. Qg4 {[%emt 0:01:13]} Rd8 {[%emt 0:02:31]} 38. h4 {[%emt 0:00:46]} Qc5+ {[%emt 0:00:51]} 39. Kh2 {[%emt 0:00:59]} Qe5+ {[%emt 0:00:09]} 40. Kh3 {[%emt 0:00:46]} Re8 {[%emt 0:01:53]} 41. Rf5 {[%emt 0:01:27]} Qe7 {[%emt 0:00:45]} 42. Kh2 {[%emt 0:00:43]} Nc6 {[%emt 0:00:17]} 43. h5 {[%emt 0:01:10]} Nd4 {[%emt 0:00:51]} 44. Rf4 {[%emt 0:01:04]} Qe5 {[%emt 0:00:39]} 45. Kh1 {[%emt 0:00:11]} Ne2 {[%emt 0:00:26]} 46. Rf2 {[%emt 0:00:59]} Qa1+ {[%emt 0:00:13]} 47. Kh2 {[%emt 0:00:12]} Qg1+ {[%emt 0:00:06]} 48. Kh3 {[%emt 0:00:01]} Qh1# {[%emt 0:00:05]} 0-1

[Event "48th Indian U15-ch Girls 2023"]
[Site "Jalgaon"]
[Date "2024.01.01"]
[Round "8.6"]
[White "Krishika Garg"]
[Black "Sherali Pattnaik"]
[Result "0-1"]
[ECO "C11"]
[WhiteElo "1529"]
[BlackElo "1575"]
[Annotator "NA RC COMBH"]
[PlyCount "108"]
[EventDate "2023.12.30"]
[EventType "swiss"]
[EventCountry "IND"]
[SourceTitle "playchess.com"]
[Source "ChessBase"]
[SourceQuality "1"]
[TimeControl "5400+30"]

1. e4 {[%emt 0:00:41]} e6 {[%emt 0:02:30]} 2. Nf3 {[%emt 0:00:15]} d5 {[%emt 0:00:04]} 3. Nc3 {[%emt 0:00:05]} Nf6 {[%emt 0:00:07]} 4. e5 {[%emt 0:00:06]} Nfd7 {[%emt 0:00:03]} 5. d4 {[%emt 0:00:09]} c5 {[%emt 0:00:06]} 6. dxc5 {[%emt 0:00:09]} Bxc5 {[%emt 0:00:42]} 7. Bd3 {[%emt 0:01:12]} Nc6 {[%emt 0:05:34]} 8. Bf4 {[%emt 0:01:21]} f6 {[%emt 0:07:07]} 9. Qe2 {[%emt 0:34:52]} fxe5 {[%emt 0:06:06]} 10. Nxe5 {[%emt 0:14:58]} Ndxe5 {[%emt 0:00:34]} 11. Bxe5 {[%emt 0:00:31]} Nxe5 {[%emt 0:01:00]} 12. Qxe5 {[%emt 0:00:02]} Qf6 {[%emt 0:04:51]} 13. Qxf6 {[%emt 0:06:34]} gxf6 {[%emt 0:05:50]} 14. Na4 {[%emt 0:05:49]} Bd6 {[%emt 0:00:00]} 15. O-O-O {[%emt 0:01:04]} Bd7 {[%emt 0:07:36]} 16. Nc3 {[%emt 0:00:04]} Rc8 {[%emt 0:00:25]} 17. Kb1 {[%emt 0:02:15]} Kf7 {[%emt 0:04:10]} 18. Rhf1 {[%emt 0:02:20]} h5 {[%emt 0:04:28]} 19. f4 {[%emt 0:02:14]} Bc6 {[%emt 0:05:15]} 20. Be2 {[%emt 0:14:10]} f5 {[%emt 0:03:18]} 21. Nb5 {[%emt 0:00:34]} Bxb5 {[%emt 0:03:22]} 22. Bxb5 {[%emt 0:00:02]} h4 {[%emt 0:02:39]} 23. c4 {[%emt 0:05:32]} a6 {[%emt 0:01:14]} 24. c5 {[%emt 0:04:02]} Bxc5 {[%emt 0:02:10]} 25. Bd3 {[%emt 0:01:05]} Be7 {[%emt 0:02:47]} 26. Rc1 {[%emt 0:00:23]} Bd6 {[%emt 0:00:49]} 27. Rxc8 {[%emt 0:00:57]} Rxc8 {[%emt 0:00:01]} 28. g3 {[%emt 0:01:28]} hxg3 {[%emt 0:02:59]} 29. hxg3 {[%emt 0:00:01]} Bb4 {[%emt 0:00:01]} 30. Rh1 {[%emt 0:01:09]} Rg8 {[%emt 0:09:31]} 31. Rh7+ {[%emt 0:00:21]} Rg7 {[%emt 0:00:01]} 32. Rxg7+ {[%emt 0:01:10]} Kxg7 {[%emt 0:00:01]} 33. Be2 {[%emt 0:00:22]} Be1 {[%emt 0:00:14]} 34. g4 {[%emt 0:00:04]} fxg4 {[%emt 0:00:05]} 35. Bxg4 {[%emt 0:00:05]} Kf6 {[%emt 0:00:00]} 36. Kc2 {[%emt 0:01:29]} Bg3 {[%emt 0:00:08]} 37. f5 {[%emt 0:00:34]} e5 {[%emt 0:00:01]} 38. Kd3 {[%emt 0:00:21]} Bf2 {[%emt 0:00:29]} 39. Ke2 {[%emt 0:00:26]} Bc5 {[%emt 0:00:22]} 40. b3 {[%emt 0:00:36]} e4 {[%emt 0:00:32]} 41. Bh3 {[%emt 0:00:16]} d4 {[%emt 0:01:35]} 42. Bg4 {[%emt 0:00:24]} Bf8 {[%emt 0:00:24]} 43. Kd2 {[%emt 0:00:59]} Bh6+ {[%emt 0:01:24]} 44. Kc2 {[%emt 0:00:20]} Kg5 {[%emt 0:06:38]} 45. Bh3 {[%emt 0:00:09]} Kf6 {[%emt 0:04:23]} 46. Bg4 {[%emt 0:00:34]} d3+ {[%emt 0:00:42]} 47. Kd1 {[%emt 0:00:03]} Ke5 {[%emt 0:01:26]} 48. Bh3 {[%emt 0:01:01]} Kd4 {[%emt 0:00:21]} 49. Bg2 {[%emt 0:00:30]} e3 {[%emt 0:00:23]} 50. Bf3 {[%emt 0:00:52]} e2+ {[%emt 0:02:05]} 51. Ke1 {[%emt 0:00:04]} Ke3 {[%emt 0:00:34]} 52. Bxe2 {[%emt 0:00:09]} dxe2 {[%emt 0:00:02]} 53. f6 {[%emt 0:00:29]} Bf8 {[%emt 0:00:10]} 54. a3 {[%emt 0:00:10]} Bxa3 {[%emt 0:00:02]} 0-1

[Event "48th Indian U15-ch Girls 2023"]
[Site "Jalgaon"]
[Date "2024.01.01"]
[Round "8.7"]
[White "Ananya Raman"]
[Black "Aamuktha Guntaka"]
[Result "0-1"]
[ECO "B45"]
[WhiteElo "1505"]
[BlackElo "1532"]
[Annotator "NA RC COMBH"]
[PlyCount "130"]
[EventDate "2023.12.30"]
[EventType "swiss"]
[EventCountry "IND"]
[SourceTitle "playchess.com"]
[Source "ChessBase"]
[SourceQuality "1"]
[TimeControl "5400+30"]

1. e4 {[%emt 0:01:13]} c5 {[%emt 0:01:29]} 2. Nf3 {[%emt 0:00:11]} e6 {[%emt 0:00:07]} 3. d4 {[%emt 0:00:06]} cxd4 {[%emt 0:00:06]} 4. Nxd4 {[%emt 0:00:18]} Nf6 {[%emt 0:00:06]} 5. Nc3 {[%emt 0:00:12]} Nc6 {[%emt 0:00:07]} 6. Ndb5 {[%emt 0:00:21]} Bc5 {[%emt 0:00:10]} 7. Bf4 {[%emt 0:13:13]} O-O {[%emt 0:00:25]} 8. Bc7 {[%emt 0:15:55]} Qe7 {[%emt 0:00:09]} 9. Bd6 {[%emt 0:00:12]} Bxd6 {[%emt 0:00:05]} 10. Nxd6 {[%emt 0:00:09]} a6 {[%emt 0:19:02]} 11. Na4 {[%emt 0:09:53]} Qd8 {[%emt 0:03:09]} 12. c4 {[%emt 0:00:57]} Ne8 {[%emt 0:13:50]} 13. Nc3 {[%emt 0:10:14]} Qb6 {[%emt 0:09:27]} 14. Rb1 {[%emt 0:00:36]} Ne7 {[%emt 0:12:00]} 15. Nxe8 {[%emt 0:02:20]} Rxe8 {[%emt 0:00:10]} 16. Be2 {[%emt 0:04:25]} d5 {[%emt 0:04:25]} 17. e5 {[%emt 0:12:18]} d4 {[%emt 0:07:18]} 18. Ne4 {[%emt 0:01:04]} Qa5+ {[%emt 0:01:31]} 19. Nd2 {[%emt 0:02:31]} Qxe5 {[%emt 0:05:38]} 20. O-O {[%emt 0:01:51]} Rd8 {[%emt 0:04:43]} 21. Nf3 {[%emt 0:00:52]} Qc7 {[%emt 0:01:31]} 22. Bd3 {[%emt 0:01:46]} e5 {[%emt 0:01:40]} 23. Re1 {[%emt 0:02:00]} Nc6 {[%emt 0:01:30]} 24. Be4 {[%emt 0:10:44]} f6 {[%emt 0:01:49]} 25. Bd5+ {[%emt 0:00:40]} Kh8 {[%emt 0:00:37]} 26. Nh4 {[%emt 0:02:34]} Ne7 {[%emt 0:00:50]} 27. Qh5 {[%emt 0:02:24]} Qd7 {[%emt 0:02:14]} 28. Re4 {[%emt 0:02:01]} Nxd5 {[%emt 0:02:18]} 29. cxd5 {[%emt 0:00:06]} Qe8 {[%emt 0:00:26]} 30. Qe2 {[%emt 0:02:14]} g5 {[%emt 0:01:22]} 31. Nf3 {[%emt 0:00:54]} Bf5 {[%emt 0:00:15]} 32. Nxg5 {[%emt 0:01:23]} Bxe4 {[%emt 0:00:57]} 33. Nxe4 {[%emt 0:00:09]} Qg6 {[%emt 0:00:40]} 34. Rc1 {[%emt 0:01:09]} Rac8 {[%emt 0:01:03]} 35. Rxc8 {[%emt 0:00:19]} Rxc8 {[%emt 0:00:03]} 36. h3 {[%emt 0:00:32]} f5 {[%emt 0:00:39]} 37. Nd2 {[%emt 0:00:39]} e4 {[%emt 0:00:19]} 38. Nb3 {[%emt 0:00:26]} Qd6 {[%emt 0:00:43]} 39. Qd2 {[%emt 0:00:35]} d3 {[%emt 0:00:45]} 40. Qa5 {[%emt 0:00:27]} Rc2 {[%emt 0:01:00]} 41. Qa4 {[%emt 0:00:30]} b5 {[%emt 0:02:57]} 42. Qd4+ {[%emt 0:00:09]} Kg8 {[%emt 0:00:06]} 43. g3 {[%emt 0:00:24]} Rc7 {[%emt 0:02:03]} 44. g4 {[%emt 0:00:58]} Rg7 {[%emt 0:01:40]} 45. Kh1 {[%emt 0:00:12]} Rd7 {[%emt 0:00:30]} 46. gxf5 {[%emt 0:00:41]} Qxd5 {[%emt 0:00:14]} 47. Qe3 {[%emt 0:00:30]} Qxf5 {[%emt 0:00:45]} 48. Nd2 {[%emt 0:00:03]} Rg7 {[%emt 0:00:51]} 49. Nxe4 {[%emt 0:00:36]} Qg6 {[%emt 0:00:35]} 50. Ng3 {[%emt 0:00:13]} Rd7 {[%emt 0:00:23]} 51. Qd2 {[%emt 0:00:40]} Qc6+ {[%emt 0:00:09]} 52. Kh2 {[%emt 0:00:06]} Qd5 {[%emt 0:00:13]} 53. b3 {[%emt 0:00:55]} Rc7 {[%emt 0:00:44]} 54. Qd1 {[%emt 0:00:47]} Qd7 {[%emt 0:00:36]} 55. Ne4 {[%emt 0:00:39]} Qd8 {[%emt 0:00:43]} 56. Qg4+ {[%emt 0:00:39]} Rg7 {[%emt 0:00:24]} 57. Qd1 {[%emt 0:00:28]} Qd4 {[%emt 0:00:26]} 58. Qf3 {[%emt 0:00:30]} Qe5+ {[%emt 0:00:22]} 59. Ng3 {[%emt 0:00:30]} d2 {[%emt 0:01:00]} 60. Qa8+ {[%emt 0:00:19]} Kf7 {[%emt 0:00:07]} 61. Qb7+ {[%emt 0:00:12]} Ke6 {[%emt 0:00:54]} 62. Qc8+ {[%emt 0:00:37]} Kd6 {[%emt 0:00:37]} 63. Qd8+ {[%emt 0:00:41]} Rd7 {[%emt 0:00:20]} 64. Qf8+ {[%emt 0:00:32]} Kc7 {[%emt 0:00:14]} 65. Qb4 {[%emt 0:00:36]} d1=Q {[%emt 0:00:17]} 0-1

[Event "48th Indian U15-ch Girls 2023"]
[Site "Jalgaon"]
[Date "2024.01.01"]
[Round "8.8"]
[White "Rajanya Datta"]
[Black "Dhakshniga, T."]
[Result "0-1"]
[ECO "C44"]
[WhiteElo "1688"]
[BlackElo "1416"]
[Annotator "NA RC COMBH"]
[PlyCount "126"]
[EventDate "2023.12.30"]
[EventType "swiss"]
[EventCountry "IND"]
[SourceTitle "playchess.com"]
[Source "ChessBase"]
[SourceQuality "1"]
[TimeControl "5400+30"]

1. e4 {[%emt 0:02:41]} e5 {[%emt 0:01:09]} 2. Nf3 {[%emt 0:00:09]} Nc6 {[%emt 0:00:13]} 3. c3 {[%emt 0:00:10]} Nf6 {[%emt 0:00:32]} 4. d4 {[%emt 0:00:07]} Nxe4 {[%emt 0:00:29]} 5. Bd3 {[%emt 0:00:36]} d5 {[%emt 0:00:31]} 6. Nxe5 {[%emt 0:00:13]} Nxe5 {[%emt 0:00:44]} 7. dxe5 {[%emt 0:00:08]} Bc5 {[%emt 0:02:39]} 8. Bxe4 {[%emt 0:02:50]} Qh4 {[%emt 0:03:04]} 9. Qe2 {[%emt 0:06:42]} Qxe4 {[%emt 0:04:37]} 10. Qxe4 {[%emt 0:00:30]} dxe4 {[%emt 0:00:11]} 11. Bf4 {[%emt 0:00:08]} Bf5 {[%emt 0:15:37]} 12. Nd2 {[%emt 0:00:16]} O-O-O {[%emt 0:01:30]} 13. O-O-O {[%emt 0:00:51]} Bxf2 {[%emt 0:02:07]} 14. Rhf1 {[%emt 0:00:34]} e3 {[%emt 0:17:39]} 15. Bxe3 {[%emt 0:02:02]} Bxe3 {[%emt 0:00:10]} 16. Rxf5 {[%emt 0:00:05]} Rxd2 {[%emt 0:01:09]} 17. Rxd2 {[%emt 0:01:55]} Rd8 {[%emt 0:00:26]} 18. Rff2 {[%emt 0:00:08]} Rd5 {[%emt 0:06:26]} 19. Kc2 {[%emt 0:00:48]} Bxd2 {[%emt 0:00:06]} 20. Rxd2 {[%emt 0:00:04]} Rxe5 {[%emt 0:00:06]} 21. b4 {[%emt 0:00:53]} c6 {[%emt 0:00:55]} 22. a4 {[%emt 0:00:23]} Kc7 {[%emt 0:00:41]} 23. Kb3 {[%emt 0:00:09]} Re4 {[%emt 0:01:13]} 24. a5 {[%emt 0:00:23]} f5 {[%emt 0:03:42]} 25. Kc2 {[%emt 0:03:49]} g6 {[%emt 0:00:52]} 26. Kb3 {[%emt 0:00:35]} f4 {[%emt 0:00:46]} 27. Kc2 {[%emt 0:00:32]} Re3 {[%emt 0:00:24]} 28. Kb3 {[%emt 0:01:45]} g5 {[%emt 0:00:22]} 29. Kc4 {[%emt 0:00:11]} b5+ {[%emt 0:02:01]} 30. Kd4 {[%emt 0:02:28]} Kd6 {[%emt 0:06:56]} 31. Rc2 {[%emt 0:01:41]} Re1 {[%emt 0:01:42]} 32. Rd2 {[%emt 0:00:06]} h5 {[%emt 0:02:33]} 33. Rf2 {[%emt 0:01:17]} Rd1+ {[%emt 0:05:13]} 34. Ke4 {[%emt 0:00:21]} Ke6 {[%emt 0:00:05]} 35. h4 {[%emt 0:05:08]} Kf6 {[%emt 0:07:12]} 36. g3 {[%emt 0:03:33]} Kg6 {[%emt 0:05:06]} 37. gxf4 {[%emt 0:01:20]} g4 {[%emt 0:01:02]} 38. Re2 {[%emt 0:02:36]} Kf6 {[%emt 0:00:53]} 39. Re3 {[%emt 0:05:13]} Rh1 {[%emt 0:00:26]} 40. Re2 {[%emt 0:00:52]} Rxh4 {[%emt 0:00:08]} 41. Rd2 {[%emt 0:00:04]} Ke7 {[%emt 0:02:19]} 42. Rg2 {[%emt 0:00:34]} Rh3 {[%emt 0:00:15]} 43. Rc2 {[%emt 0:01:42]} g3 {[%emt 0:01:35]} 44. Kf3 {[%emt 0:00:09]} Rh2 {[%emt 0:02:03]} 45. Rc1 {[%emt 0:03:47]} h4 {[%emt 0:00:06]} 46. Re1+ {[%emt 0:00:56]} Kf7 {[%emt 0:00:43]} 47. Rd1 {[%emt 0:00:34]} Rf2+ {[%emt 0:00:26]} 48. Kg4 {[%emt 0:00:07]} Rh2 {[%emt 0:01:02]} 49. Kf3 {[%emt 0:01:13]} g2 {[%emt 0:01:26]} 50. Kf2 {[%emt 0:00:05]} h3 {[%emt 0:00:08]} 51. Rd7+ {[%emt 0:00:06]} Ke6 {[%emt 0:00:09]} 52. Rxa7 {[%emt 0:00:05]} Rh1 {[%emt 0:00:07]} 53. Rg7 {[%emt 0:00:06]} Rf1+ {[%emt 0:00:07]} 54. Ke2 {[%emt 0:00:40]} g1=Q {[%emt 0:00:14]} 55. Rxg1 {[%emt 0:00:03]} Rxg1 {[%emt 0:00:08]} 56. f5+ {[%emt 0:00:02]} Kxf5 {[%emt 0:00:17]} 57. a6 {[%emt 0:00:07]} Ra1 {[%emt 0:00:05]} 58. a7 {[%emt 0:00:02]} Rxa7 {[%emt 0:00:07]} 59. c4 {[%emt 0:00:04]} h2 {[%emt 0:00:06]} 60. Kf2 {[%emt 0:00:05]} h1=Q {[%emt 0:00:10]} 61. c5 {[%emt 0:00:01]} Ra2+ {[%emt 0:00:12]} 62. Kg3 {[%emt 0:00:03]} Rg2+ {[%emt 0:00:13]} 63. Kf3 {[%emt 0:00:03]} Qh3# {[%emt 0:00:07]} 0-1